[Event "Austrian Bundesliga 2023-24"]
[Site "Austria"]
[Date "2024.03.22"]
[Round "9.27"]
[White "Livaic, Leon"]
[Black "Vitiugov, Nikita"]
[Result "0-1"]
[ECO "C54"]
[WhiteElo "2558"]
[BlackElo "2688"]
[Annotator "TA"]
[PlyCount "46"]
[EventDate "2023.10.21"]
[EventType "team-tourn"]
[EventCountry "AUT"]
[SourceTitle "playchess.com"]
[Source "ChessBase"]
[SourceQuality "1"]
[TimeControl "40/5400+30:1800+30"]

{[%evp 9,46,12,7,-69,-69,-59,-46,-43,-37,-33,-52,-42,0,0,6,3,48,0,46,-231,-125,-241,-243,-228,-233,-251,-260,-383,-381,-541,-484,-551,-514,-693,-700,-695,-659,-604,-589]} 1. e4 {[%emt 0:00:14]} e5 {[%emt 0:00:15][%cal Be7e5,Be5d4][%mdl 32]} 2. Nf3 {[%emt 0:00:10]} Nc6 {[%emt 0:00:05]} 3. Bc4 {[%emt 0:00:42]} Bc5 {[%emt 0:00:25]} 4. c3 {[%emt 0:00:18]} Nf6 {[%emt 0:00:14]} 5. d4 {[%emt 0:01:11]} exd4 {[%emt 0:00:07]} 6. b4 {[%emt 0:00:04]} ({Better is} 6. cxd4 $11 Bb4+ 7. Bd2) 6... Bb6 $15 {[%emt 0:03:34]} 7. e5 {[%emt 0:00:30]} d5 {[%emt 0:00:49]} 8. exf6 {[%emt 0:00:24] Black is slightly better.} dxc4 {[%emt 0:00:06]} 9. Qe2+ {[%emt 0:00:39]} Be6 {[%emt 0:00:19]} 10. b5 $1 {[%emt 0:00:43] [#]} Nb4 $1 {[%emt 0:04:53]} 11. fxg7 $11 {[%emt 0:01:04]} Rg8 $132 {[%emt 0:00:19][%mdl 2048] Black puts up resistance} 12. cxb4 {[%emt 0:03:20] And now Bg5 would win.} Qf6 {[%emt 0:05:09]} 13. Qe4 {[%emt 0:54:35]} (13. O-O $14 {feels stronger.}) 13... Rxg7 {[%emt 0:18:34]} (13... Qxg7 $11 14. Bg5 d3) 14. Bf4 $2 {[%emt 0:06:29][%mdl 8192]} (14. O-O $14 {keeps the upper hand.}) 14... Rg4 {[%emt 0:13:14]} (14... Rxg2 $19 15. Be5 Qe7) 15. Qxb7 {[%emt 0:04:54]} (15. g3 $17) 15... Rd8 $19 {[%emt 0:01:21]} 16. Qc6+ {[%emt 0:01:19]} Kf8 {[%emt 0:01:27][%mdl 1024] Black has strong compensation.} 17. Be5 {[%emt 0:06:08]} Qf5 {[%emt 0:20:37] Threatens to win with ...Rg6.} 18. O-O {[%emt 0:05:53]} (18. Bxc7 $142 Qe4+ 19. Qxe4 Rxe4+ 20. Kd1 Bxc7 21. Ng5) 18... Rg6 $1 {[%emt 0:03:54] aiming for ...Bd5.} (18... Bd5 19. Qh6+ Kg8 20. Bg3 $14) 19. Bg3 {[%emt 0:04:13] [#]} (19. Nc3 $142 Bd5 (19... dxc3 $2 20. Rad1 $19) 20. Nxd5 Rxc6 (20... Qxf3 $2 {perishes.} 21. Qxg6 fxg6 22. gxf3 $18) 21. Nxb6) 19... Bd5 $1 {[%emt 0:01:50] Black is clearly winning.} 20. Nh4 {[%emt 0:00:17] [#]} Qg5 $1 {[%emt 0:02:20]} 21. f4 {[%emt 0:00:36]} Qe7 {[%emt 0:01:36]} ({Don't blunder} 21... Qxh4 $2 22. Qxg6 $18) 22. Nxg6+ {[%emt 0:02:35]} fxg6 {[%emt 0:00:24]} 23. Re1 {[%emt 0:00:11]} Qf7 {[%emt 0:01:01] Weighted Error Value: White=0.72/Black=0.09 (flawless) .  Loses game:     	White=1     	---        Mistake:       	White=4     	Black=3      Inaccurate:     	White=1     	---        OK:         	White=7     	Black=6      Best:        	---       	Black=4      Strong:       	White=1     	Black=3} ({And not} 23... Bxc6 24. Rxe7 d3+ 25. Kf1 $16) 0-1

[Event "Austrian Bundesliga 2023-24"]
[Site "Austria"]
[Date "2024.03.22"]
[Round "9.28"]
[White "Maghsoodloo, Parham"]
[Black "Bosiocic, Marin"]
[Result "1-0"]
[ECO "D02"]
[WhiteElo "2717"]
[BlackElo "2549"]
[Annotator "TA"]
[PlyCount "71"]
[EventDate "2023.10.21"]
[EventType "team-tourn"]
[EventCountry "AUT"]
[SourceTitle "playchess.com"]
[Source "ChessBase"]
[SourceQuality "1"]
[TimeControl "40/5400+30:1800+30"]

{[%evp 9,71,0,11,10,19,25,22,16,32,22,14,26,23,26,47,39,77,20,15,20,27,35,15,37,43,23,22,14,27,20,90,80,91,101,106,65,66,59,83,75,177,178,237,127,242,155,614,607,766,766,2431,12847,29939,29941,6845,11175,6291,6512,4698,4794,1611,1583,29985,1830]} 1. d4 {[%emt 0:00:13]} Nf6 {[%emt 0:00:15]} 2. Nf3 {[%emt 0:00:05]} d5 {[%emt 0:00:29]} 3. Bf4 {[%emt 0:00:08]} c5 {[%emt 0:00:20]} 4. e3 {[%emt 0:00:06]} Nc6 {[%emt 0:00:10]} 5. Nbd2 {[%emt 0:00:08]} cxd4 {[%emt 0:00:37]} 6. exd4 {[%emt 0:00:06]} a6 {[%emt 0:00:17]} 7. c3 {[%emt 0:11:20]} Bf5 {[%emt 0:00:16]} 8. Nh4 {[%emt 0:08:05] Die Stellung ist ausgeglichen.} Be4 {[%emt 0:02:17]} 9. Bg5 {[%emt 0:04:05]} e6 {[%emt 0:05:26]} 10. Nxe4 {[%emt 0:10:13]} dxe4 {[%emt 0:00:08]} 11. g3 {[%emt 0:01:43]} h6 {[%emt 0:03:48]} 12. Bxf6 {[%emt 0:01:02]} Qxf6 {[%emt 0:00:34]} 13. Qb3 {[%emt 0:03:13]} (13. Be2 $16) 13... O-O-O $1 $11 {[%emt 0:03:57]} 14. Be2 {[%emt 0:05:58]} Bd6 {[%emt 0:03:47]} 15. Qc2 {[%emt 0:05:29]} g5 {[%emt 0:09:42]} 16. Ng2 {[%emt 0:00:06]} Qg6 $1 {[%emt 0:00:20]} 17. O-O-O {[%emt 0:04:42]} Ne7 {[%emt 0:04:59]} 18. Kb1 {[%emt 0:02:31]} Kb8 {[%emt 0:01:27]} 19. Rhe1 {[%emt 0:02:06]} f5 {[%emt 0:11:45]} (19... Bc7 $11 {bleibt in der Remisbreite.}) 20. f3 $16 {[%emt 0:06:59]} exf3 {[%emt 0:04:41]} 21. Bxf3 {[%emt 0:00:06] Qb3 ist eine echte Drohung.} g4 {[%emt 0:00:50]} 22. Nh4 {[%emt 0:05:08] Weiß steht aktiver.} Qg5 {[%emt 0:01:15]} 23. Bg2 {[%emt 0:02:36][%cal Oc2b3] Droht Qb3! und aus.} f4 $1 {[%emt 0:02:15]} 24. Rxe6 {[%emt 0:00:05]} fxg3 {[%emt 0:03:39]} (24... f3 $16) 25. hxg3 {[%emt 0:00:06] Und c4 würde nun gewinnen.} Bxg3 {[%emt 0:03:31] [#]} (25... Rd7 $142 26. Ng6 Nxg6) 26. Ng6 $40 {[%emt 0:04:27][%mdl 128] Weiss hat starken Angriff.} (26. Bxb7 $1 $18 Rd6 27. Rxd6 Bxd6 28. Bxa6) 26... Rh7 {[%emt 0:05:12]} (26... Nxg6 $16 27. Rxg6 Qe7 28. Rxg4 Rhg8) 27. Ne5 {[%emt 0:03:34]} Nf5 $2 {[%emt 0:05:43] Schwarz ist schwach auf den weissen Feldern. Danach kann Schwarz die Partie nicht mehr halten.} (27... Qf5 $16) 28. Rf1 $18 {[%emt 0:00:48]} (28. Rg6 Ne3 29. Qd3 (29. Rxg5 Nxc2 30. Rxg4 Ne3 $14) 29... Qf5 30. Nxg4 Qxd3+ 31. Rxd3 Nxg2 $16) 28... Rf8 {[%emt 0:02:38]} 29. Qe4 {[%emt 0:02:51]} Ka7 {[%emt 0:12:53] [#] Es drohte Rb6} 30. Nc6+ $1 {[%emt 0:04:30][%mdl 512]} bxc6 {[%emt 0:00:06]} 31. Qxc6 {[%emt 0:00:03][%csl Ge6][%cal Rc6b6]} Bd6 {[%emt 0:00:43]} 32. Rxd6 {[%emt 0:00:05]} Nxd6 {[%emt 0:00:18]} 33. Rxf8 {[%emt 0:00:05][%csl Gc6,Gg2][%cal Rf8a8]} Nb7 {[%emt 0:01:02]} 34. Bf1 {[%emt 0:02:02]} Qa5 {[%emt 0:01:04]} 35. b4 {[%emt 0:00:41]} Qa3 {[%emt 0:01:27]} 36. Rf6 {[%emt 0:02:58] Gewichteter Fehlerwert: Weiß=0.22 (präzise) /Schwarz=0.65.  Verlustzug:     	---       	Schwarz=1     Fehler:       	Weiß=2     	Schwarz=4     Ungenau:       	Weiß=2     	Schwarz=1     OK:         	Weiß=10    	Schwarz=2     Bester:       	Weiß=1     	Schwarz=1     Stark:        	---       	Schwarz=3} 1-0

[Event "Austrian Bundesliga 2023-24"]
[Site "Austria"]
[Date "2024.03.22"]
[Round "9.29"]
[White "Saric, Ante"]
[Black "Vallejo Pons, Francisco"]
[Result "1/2-1/2"]
[ECO "D37"]
[WhiteElo "2505"]
[BlackElo "2653"]
[Annotator "TA"]
[PlyCount "33"]
[EventDate "2023.10.21"]
[EventType "team-tourn"]
[EventCountry "AUT"]
[SourceTitle "playchess.com"]
[Source "ChessBase"]
[SourceQuality "1"]
[TimeControl "40/5400+30:1800+30"]

{[%evp 21,33,6,4,0,9,17,18,7,17,0,0,0,4,0]} 1. Nf3 {[%emt 0:00:04]} d5 {[%emt 0:00:14]} 2. d4 {[%emt 0:00:06]} Nf6 {[%emt 0:00:14]} 3. c4 {[%emt 0:00:06]} e6 {[%emt 0:00:08]} 4. Nc3 {[%emt 0:00:21]} dxc4 {[%emt 0:00:17]} 5. e3 {[%emt 0:00:24]} a6 {[%emt 0:00:44]} 6. a4 {[%emt 0:00:12]} c5 {[%emt 0:00:27]} 7. Bxc4 {[%emt 0:00:21]} cxd4 {[%emt 0:00:09]} 8. exd4 {[%emt 0:00:28]} Nc6 {[%emt 0:00:26]} 9. O-O {[%emt 0:00:30]} Be7 {[%emt 0:00:02]} 10. d5 {[%emt 0:02:05]} exd5 {[%emt 0:00:15]} 11. Nxd5 {[%emt 0:00:06]} Nxd5 {[%emt 0:00:04] Die Stellung ist ausgeglichen.} 12. Bxd5 {[%emt 0:00:49]} O-O {[%emt 0:00:39]} 13. Qb3 {[%emt 0:02:11]} Na5 {[%emt 0:01:37]} 14. Qa2 {[%emt 0:00:18]} Nc6 {[%emt 0:00:15] [#] Pariert Ne5. ...Nb4 wäre nun fies.} 15. Qb3 {[%emt 0:00:47]} Na5 {[%emt 0:00:28]} 16. Qa2 {[%emt 0:00:05]} Nc6 {[%emt 0:00:04] Gegen Ne5 gerichtet. Weiss muss nun ...Nb4 beachten.} 17. Qb3 {Ein ziemlich ruhiges Remis.   Gewichteter Fehlerwert: Weiß=0.04 (makellos) /Schwarz=0.00 (makellos) .  OK:         	Weiß=2     	Schwarz=5} 1/2-1/2

[Event "Austrian Bundesliga 2023-24"]
[Site "Austria"]
[Date "2024.03.22"]
[Round "9.30"]
[White "Bacrot, Etienne"]
[Black "Rogic, Davor"]
[Result "1-0"]
[ECO "C92"]
[WhiteElo "2680"]
[BlackElo "2418"]
[Annotator "TA"]
[PlyCount "131"]
[EventDate "2023.10.21"]
[EventType "team-tourn"]
[EventCountry "AUT"]
[SourceTitle "playchess.com"]
[Source "ChessBase"]
[SourceQuality "1"]
[TimeControl "40/5400+30:1800+30"]

{[%evp 40,131,0,0,0,0,0,0,0,0,0,0,34,25,32,40,62,58,54,51,81,70,95,63,68,72,77,37,41,45,44,48,39,36,31,44,42,44,47,52,45,47,145,141,134,135,140,146,134,135,134,136,135,137,151,125,133,137,143,141,164,148,148,135,154,123,228,228,237,227,228,234,212,204,285,152,258,244,570,570,499,447,380,390,389,388,468,468,609,608,5638,5933,5003,2302]} 1. e4 {[%emt 0:00:03]} e5 {[%emt 0:00:23]} 2. Nf3 {[%emt 0:00:05]} Nc6 {[%emt 0:00:26]} 3. Bb5 {[%emt 0:00:07]} a6 {[%emt 0:02:02]} 4. Ba4 {[%emt 0:00:06]} Nf6 {[%emt 0:00:24]} 5. O-O {[%emt 0:00:08]} Be7 {[%emt 0:00:20]} 6. Re1 {[%emt 0:00:07]} b5 {[%emt 0:00:12]} 7. Bb3 {[%emt 0:00:07]} d6 {[%emt 0:00:16]} 8. c3 {[%emt 0:00:06]} O-O {[%emt 0:00:09]} 9. h3 {[%emt 0:00:04]} Bb7 {[%emt 0:00:38]} 10. d4 {[%emt 0:01:35]} Re8 {[%emt 0:00:19]} 11. Nbd2 {[%emt 0:01:27]} Bf8 {[%emt 0:00:14]} 12. a4 {[%emt 0:00:26]} Na5 {[%emt 0:01:15] C92: Closed Ruy Lopez: 9...Be6, Karpov and Flohr-Zaitsev Variations.} 13. Bc2 {[%emt 0:03:33]} b4 {[%emt 0:00:19] 13...b4 has lost popularity.} 14. d5 {[%emt 0:09:45]} bxc3 {[%emt 0:00:33]} 15. bxc3 {[%emt 0:00:02]} c6 {[%emt 0:00:37]} 16. c4 {[%emt 0:00:08]} Qc7 {[%emt 0:01:09]} 17. Bd3 {[%emt 0:04:21]} Bc8 {[%emt 0:01:08]} 18. Nb3 {[%emt 0:08:24]} Nxb3 {[%emt 0:08:02]} 19. Qxb3 {[%emt 0:00:12]} Rb8 {[%emt 0:02:34]} 20. Qa3 $146 {[%emt 0:08:02]} ({Predecessor:} 20. Qc2 Nd7 21. a5 Nc5 22. Bf1 Nb3 23. Rb1 Nxc1 24. Rxb8 Qxb8 25. dxc6 Qc7 26. Rxc1 Qxc6 27. c5 Qxc5 28. Bc4 Qxa5 29. Ng5 Be6 30. Nxe6 fxe6 31. Qb3 d5 {½-½ Kraft,D (2206)-Happe,R (2307) GER-ch44 V08 email 2012}) 20... a5 {[%emt 0:01:50]} 21. Be3 {[%emt 0:05:33]} Nd7 {[%emt 0:06:44]} 22. Reb1 {[%emt 0:10:37]} Ba6 {[%emt 0:03:37]} 23. Nd2 {[%emt 0:02:52]} Nc5 {[%emt 0:10:23]} 24. Bc2 {[%emt 0:02:02]} Be7 {[%emt 0:02:41]} 25. Qc3 {[%emt 0:00:42]} Rec8 {[%emt 0:19:48]} 26. dxc6 {[%emt 0:06:19]} Ne6 {[%emt 0:02:54]} 27. Rb5 {[%emt 0:07:11]} Qxc6 {[%emt 0:06:48]} 28. Rxb8 {[%emt 0:02:27]} Rxb8 {[%emt 0:00:05]} 29. Qxa5 {[%emt 0:00:05]} Nd4 {[%emt 0:04:56]} 30. Bd3 {[%emt 0:05:52]} h6 {[%emt 0:03:39]} 31. Qd5 {[%emt 0:05:28]} Qc7 {[%emt 0:01:44]} 32. Bxd4 {[%emt 0:02:23]} Bb7 {[%emt 0:03:00]} 33. Qb5 {[%emt 0:01:04]} (33. Bb6 $5 Qxb6 34. Qb5 $11) 33... Bc6 $1 34. Qa6 $1 {[%emt 0:04:22]} exd4 {[%emt 0:01:38]} 35. Rb1 {[%emt 0:00:48]} Ra8 {[%emt 0:02:59]} 36. Qb6 {[%emt 0:00:10]} Qxb6 {[%emt 0:01:33]} 37. Rxb6 {[%emt 0:00:02]} Bxa4 {[%emt 0:00:09]} 38. Nf3 {[%emt 0:00:24]} Bd1 {[%emt 0:04:12]} 39. Nxd4 {[%emt 0:01:11]} Bf6 {[%emt 0:01:24]} 40. Nf5 {[%emt 0:00:00]} Ra3 {[%emt 0:00:00]} (40... Be5 $14) 41. Rxd6 $16 {[%emt 0:14:26]} Ra1 {[%emt 0:06:22]} 42. f4 {[%emt 0:10:54]} Bg4+ {[%emt 0:14:55]} 43. Kf2 {[%emt 0:01:44]} Bxf5 {[%emt 0:00:05]} 44. exf5 {[%emt 0:00:05]} Kf8 {[%emt 0:02:40]} 45. Kf3 {[%emt 0:00:47]} Ke7 {[%emt 0:00:33]} 46. Rb6 {[%emt 0:01:55]} Ra7 {[%emt 0:00:54]} 47. Ke4 {[%emt 0:03:44]} Rd7 {[%emt 0:01:40]} 48. c5 {[%emt 0:01:14]} Bd4 {[%emt 0:01:59]} 49. Rc6 {[%emt 0:04:10]} Bg1 {[%emt 0:00:07]} 50. Bb5 {[%emt 0:01:34]} Rb7 {[%emt 0:00:41]} 51. Bc4 {[%emt 0:00:37]} Ra7 {[%emt 0:03:55]} 52. Rc8 {[%emt 0:02:00]} Ra4 {[%emt 0:01:42]} (52... Kd7 $16 53. Rg8 Kc6) 53. Kd5 $18 {[%emt 0:00:41]} Kd7 {[%emt 0:00:40]} 54. Rf8 {[%emt 0:00:59]} Ke7 {[%emt 0:01:13] [#]} 55. Rb8 $1 {[%emt 0:00:14]} Ra7 {[%emt 0:02:18]} 56. Bb5 {[%emt 0:02:03]} Rc7 {[%emt 0:02:19]} 57. Re8+ {[%emt 0:01:40]} Kf6 {[%emt 0:00:03]} 58. c6 {[%emt 0:00:06]} Bh2 $2 {[%emt 0:01:08]} (58... Ra7 59. Rb8 Kxf5) 59. Re4 $18 {[%emt 0:00:47]} Rc8 {[%emt 0:01:37]} 60. Ba6 {[%emt 0:01:24]} Rd8+ {[%emt 0:01:18]} 61. Kc4 {[%emt 0:00:26]} Rd1 {[%emt 0:00:27]} 62. Kb5 {[%emt 0:00:26]} Rc1 {[%emt 0:00:37]} 63. Kb6 {[%emt 0:00:29]} Kxf5 {[%emt 0:01:34]} 64. Bd3 {[%emt 0:00:22]} Rc3 {[%emt 0:00:52]} 65. g4+ {[%emt 0:01:07]} Kf6 {[%emt 0:00:04]} 66. Bc4 {[%emt 0:00:22]} 1-0

[Event "Austrian Bundesliga 2023-24"]
[Site "Austria"]
[Date "2024.03.22"]
[Round "9.31"]
[White "Markus, Robert"]
[Black "Dragnev, Valentin"]
[Result "1/2-1/2"]
[ECO "D55"]
[WhiteElo "2595"]
[BlackElo "2575"]
[Annotator "TA"]
[PlyCount "60"]
[EventDate "2023.10.21"]
[EventType "team-tourn"]
[EventCountry "AUT"]
[SourceTitle "playchess.com"]
[Source "ChessBase"]
[SourceQuality "1"]
[TimeControl "40/5400+30:1800+30"]

{[%evp 16,60,19,26,35,14,13,18,10,14,9,8,10,4,42,17,27,25,28,18,25,13,10,14,29,30,17,6,0,0,0,0,0,6,5,0,0,0,0,-10,-24,-10,-12,-11,-11,-15,-13]} 1. d4 {[%emt 0:00:05]} Nf6 {[%emt 0:00:07]} 2. c4 {[%emt 0:00:09]} e6 {[%emt 0:00:04]} 3. Nc3 {[%emt 0:00:07]} d5 {[%emt 0:01:22]} 4. Bg5 {[%emt 0:00:10]} Be7 {[%emt 0:00:40]} 5. e3 {[%emt 0:00:09]} O-O {[%emt 0:00:13]} 6. Nf3 {[%emt 0:00:13]} dxc4 {[%emt 0:00:24]} 7. Bxc4 {[%emt 0:00:16]} c5 {[%emt 0:00:07]} 8. O-O {[%emt 0:05:51]} cxd4 {[%emt 0:00:14]} 9. Nxd4 {[%emt 0:00:07]} Bd7 {[%emt 0:00:08]} 10. a3 {[%emt 0:11:05]} Nc6 {[%emt 0:00:55]} 11. Nf3 {[%emt 0:00:08]} h6 {[%emt 0:04:25]} 12. Bh4 {[%emt 0:02:46]} Nh5 {[%emt 0:01:24]} 13. Bxe7 {[%emt 0:01:23]} Qxe7 {[%emt 0:00:15]} 14. Qe2 {[%emt 0:05:47]} Rad8 {[%emt 0:22:17]} 15. Rfd1 {[%emt 0:07:36]} Bc8 {[%emt 0:06:27]} 16. Bb5 {[%emt 0:00:28]} Nb8 {[%emt 0:02:57]} 17. Rac1 {[%emt 0:09:15]} Rxd1+ {[%emt 0:04:57]} 18. Qxd1 {[%emt 0:00:07]} Rd8 {[%emt 0:01:47] Es drohte Qd4} 19. Qa4 {[%emt 0:03:19]} a6 {[%emt 0:00:43]} 20. Be2 {[%emt 0:00:08]} Nf6 {[%emt 0:02:20]} 21. h3 {[%emt 0:05:43]} b5 {[%emt 0:08:46]} 22. Qf4 {[%emt 0:13:54]} Bb7 {[%emt 0:02:51]} 23. Rd1 {[%emt 0:02:59]} Rxd1+ {[%emt 0:01:22]} 24. Bxd1 {[%emt 0:00:07]} Nc6 {[%emt 0:00:24]} 25. Ne5 {[%emt 0:02:14]} Nxe5 {[%emt 0:06:33]} 26. Qxe5 {[%emt 0:00:11]} Qd8 {[%emt 0:00:17]} 27. Bf3 {[%emt 0:04:46]} Bxf3 {[%emt 0:01:33]} 28. gxf3 {[%emt 0:00:05]} Qd2 {[%emt 0:00:59] Die Stellung ist ausgeglichen.} 29. Ne4 $1 {[%emt 0:00:14]} Nxe4 {[%emt 0:00:30]} 30. fxe4 {[%emt 0:00:16]} Qc1+ {[%emt 0:00:38] Hier war wenig los.   Gewichteter Fehlerwert: Weiß=0.04 (makellos) /Schwarz=0.02 (makellos) .  Ungenau:       	---       	Schwarz=1     OK:         	Weiß=4     	Schwarz=13    Bester:       	---       	Schwarz=1     Stark:        	Weiß=1     	---} 1/2-1/2

[Event "Austrian Bundesliga 2023-24"]
[Site "Austria"]
[Date "2024.03.22"]
[Round "9.32"]
[White "Blohberger, Felix"]
[Black "Horvath, Dominik"]
[Result "1/2-1/2"]
[ECO "B90"]
[WhiteElo "2531"]
[BlackElo "2534"]
[Annotator "TA"]
[PlyCount "42"]
[EventDate "2023.10.21"]
[EventType "team-tourn"]
[EventCountry "AUT"]
[SourceTitle "playchess.com"]
[Source "ChessBase"]
[SourceQuality "1"]
[TimeControl "40/5400+30:1800+30"]

{[%evp 11,42,12,23,0,0,0,0,-33,0,0,0,0,0,0,0,0,0,0,0,0,0,0,0,0,0,0,0,0,0,0,0,0,0]} 1. e4 {[%emt 0:00:06]} c5 {[%emt 0:00:21]} 2. Nf3 {[%emt 0:00:08]} d6 {[%emt 0:01:09]} 3. d4 {[%emt 0:03:20]} cxd4 {[%emt 0:00:21]} 4. Nxd4 {[%emt 0:00:08]} Nf6 {[%emt 0:00:03]} 5. Nc3 {[%emt 0:00:07]} a6 {[%emt 0:00:04]} 6. h3 {[%emt 0:00:48]} e5 {[%emt 0:01:37]} 7. Nf3 {[%emt 0:00:57][%cal Bd4f3,Bf3g5,Bg5f7][%mdl 32]} Be7 {[%emt 0:00:51]} 8. g4 {[%emt 0:01:01]} h6 {[%emt 0:00:10]} 9. Rg1 {[%emt 0:01:40]} Nc6 {[%emt 0:03:04]} 10. g5 {[%emt 0:01:59] The position is equal.} hxg5 {[%emt 0:01:16]} 11. Nxg5 {[%emt 0:00:13]} Nd4 {[%emt 0:01:54]} 12. Bc4 {[%emt 0:01:12]} Ng4 {[%emt 0:00:59]} 13. Nxf7 {[%emt 0:05:22]} (13. Rxg4 $2 Bxg4 14. Bxf7+ (14. Qxg4 $2 Bxg5 15. Be2 Bxc1 $19) 14... Kf8 15. Qxg4 Bxg5 $19) 13... Nxf2 $1 {[%emt 0:00:25]} 14. Kxf2 {[%emt 0:00:56]} Bh4+ {[%emt 0:00:05]} 15. Ke3 $1 {[%emt 0:00:33]} (15. Kg2 Bxh3+ 16. Kh1 (16. Kxh3 {leads to mate.} Be1+) 16... Bf2) 15... Bf2+ $1 {[%emt 0:00:07]} 16. Kxf2 {[%emt 0:00:15]} Qf6+ {[%emt 0:00:24]} 17. Ke1 {[%emt 0:00:53]} Qh4+ {[%emt 0:00:06]} 18. Kd2 $1 {[%emt 0:00:09]} Qf4+ {[%emt 0:00:05]} 19. Ke1 {[%emt 0:00:06]} Qh4+ {[%emt 0:00:17]} 20. Kd2 $1 {[%emt 0:00:10]} Qf4+ {[%emt 0:00:05]} 21. Ke1 {[%emt 0:00:08]} Qh4+ {[%emt 0:00:04] An uneventful encounter.   Weighted Error Value: White=0.01 (flawless) /Black=0.02 (flawless) .  Inaccurate:     	White=1     	Black=1      OK:         	White=5     	Black=8      Best:        	White=3     	Black=3      Strong:       	White=3     	Black=2} 1/2-1/2